bitfinex-derivatives/quotes_SOLF0:USTF0_20241216
["timestamp","ask_amount","ask_price","bid_price","bid_amount"]
[1734377637291,13.20913437,218.9,218.8,1.6127]
[1734377637597,2.2847,218.81,218.8,1.6127]
[1734377640591,2.2847,218.81,218.79,1.5641]
[1734377641692,2.2848,218.8,218.79,1.5641]
[1734377641894,2.98,218.85,218.79,1.5641]
[1734377642397,2.2847,218.82,218.79,1.5641]
[1734377642593,2.98,218.9,218.79,1.5641]
[1734377642797,2.2842,218.86,218.79,1.5641]
[1734377643196,2.2842,218.86,218.81,2.2847]
[1734377643896,2.2843,218.85,218.81,2.2847]
[1734377644198,2.98,218.9,218.79,1.5641]
[1734377644397,2.98,218.9,218.79,3.849]
[1734377644398,2.2845,218.83,218.79,3.849]
[1734377644799,2.98,218.9,218.79,3.849]
[1734377646600,13.20913437,218.91,218.79,3.849]
[1734377646800,2.2844,218.84,218.79,3.849]
[1734377647196,2.98,218.9,218.79,1.5641]
[1734377648098,2.98,218.9,218.82,2.2845]
[1734377649294,2.2842,218.86,218.82,2.2845]
[1734377649693,78.40996339,218.92,218.81,13.20913437]
[1734377650300,2.2838,218.9,218.85,2.2842]
[1734377650495,78.40996339,218.92,218.81,13.20913437]
[1734377650902,2.2842,218.86,218.8,2.98]
[1734377651208,78.40996339,218.92,218.8,2.98]
[1734377651403,78.40996339,218.92,218.84,2.2843]
[1734377651404,81.38996339,218.92,218.84,2.2843]
[1734377651903,81.38996339,218.92,218.81,2.2847]
[1734377651904,2.2844,218.85,218.81,2.2847]
[1734377652097,8.47087147,218.87,218.8,11.45087147]
[1734377652293,8.47087147,218.87,218.8,2.98]
[1734377652499,8.47087147,218.87,218.8,5.2648]
[1734377652695,8.47087147,218.9,218.83,8.47087147]
[1734377653296,8.47087147,218.88,218.81,8.47087147]
[1734377654406,2.2843,218.85,218.82,2.2846]
[1734377654604,8.47087147,218.97,218.84,8.47087147]
[1734377654807,8.47087147,218.97,218.89,8.47087147]
[1734377655009,2.2836,218.92,218.89,8.47087147]
[1734377655200,2.98,218.98,218.8,2.98]
[1734377655506,8.47087147,218.93,218.86,8.47087147]
[1734377655902,2.2837,218.91,218.86,8.47087147]
[1734377656110,13.22877331,218.97,218.85,2.2842]
[1734377656304,17.6598433,218.96,218.85,2.2842]
[1734377656604,2.98,218.95,218.79,1.5641]
[1734377656806,2.98,218.95,218.61,49.95569514]
[1734377656807,26.45754662,218.8,218.52,6.24446189]
[1734377657006,26.45754662,218.8,218.53,2.98]
[1734377657007,13.22877331,218.65,218.53,2.98]
[1734377657305,13.22877331,218.59,218.53,2.98]
[1734377657502,13.22877331,218.59,218.44,13.22877331]
[1734377657703,13.22877331,218.56,218.45,2.98]
[1734377658008,13.22877331,218.56,218.37,52.26]
[1734377658009,21.24815651,218.53,218.46,2.98]
[1734377658199,21.24815651,218.49,218.31,153.64393679]
[1734377658405,2.2883,218.47,218.34,2.2895]
[1734377658606,21.24815651,218.45,218.4,5.50908687]
[1734377658804,21.24815651,218.45,218.38,2.98]
[1734377659000,23.53705651,218.41,218.31,132.39578028]
[1734377659206,23.53705651,218.41,218.32,2.98]
[1734377660211,21.24815651,218.41,218.34,5.55468461]
[1734377661209,1.5614,218.54,218.31,132.39578028]
[1734377661210,21.24815651,218.36,218.31,132.39578028]
[1734377661704,21.24815651,218.36,218.3,5.45670332]
[1734377662109,21.24815651,218.36,218.28,2.98]
[1734377662311,2.2896,218.35,218.28,2.98]
[1734377662612,21.24815651,218.36,218.28,2.98]
[1734377663010,21.24815651,218.36,218.2,4.5886]
[1734377663203,21.24815651,218.36,218.21,2.98]
[1734377663908,2.2898,218.33,218.24,2.2906]
[1734377664610,2.2898,218.33,218.29,5.56831146]
[1734377666017,2.2901,218.3,218.25,2.98]
[1734377666313,21.24815651,218.36,218.26,5.62872094]
[1734377666515,2.2899,218.32,218.26,5.62872094]
[1734377667114,2.2901,218.3,218.26,5.62872094]
[1734377667313,21.24815651,218.36,218.26,5.62872094]
[1734377668615,21.24815651,218.4,218.26,5.62872094]
[1734377668813,3.0583,218.43,218.27,21.24815651]
[1734377669017,2.2892,218.38,218.29,2.2901]
[1734377669212,3.0583,218.43,218.26,5.62872094]
[1734377670726,2.2897,218.34,218.26,5.62872094]
[1734377671414,3.0583,218.43,218.28,2.2902]
[1734377671415,2.2894,218.37,218.28,2.2902]
[1734377671621,3.0583,218.43,218.27,21.24815651]
[1734377672217,2.2892,218.38,218.28,2.2902]
[1734377672524,3.0583,218.43,218.28,2.2902]
[1734377672719,2.2893,218.38,218.29,2.2901]
[1734377673020,3.0583,218.43,218.29,2.2901]
[1734377673418,3.0583,218.43,218.27,21.24815651]
[1734377673419,2.2891,218.39,218.27,21.24815651]
[1734377673814,2.2891,218.39,218.3,2.29]
[1734377674014,2.2891,218.39,218.31,3.0]
[1734377674319,21.24815651,218.46,218.32,1.5469]
[1734377674523,2.2893,218.37,218.32,1.5469]
[1734377675419,21.24815651,218.46,218.32,1.5469]
[1734377675625,21.24815651,218.5,218.33,1.4871]
[1734377676016,2.2886,218.44,218.35,21.24815651]
[1734377676417,2.2886,218.44,218.36,2.2893]
[1734377676721,2.2886,218.44,218.35,21.24815651]
[1734377676722,2.2886,218.44,218.37,3.0]
[1734377677320,2.2886,218.44,218.38,2.2891]
[1734377678128,4.5614,218.54,218.37,3.0]
[1734377678129,2.2884,218.46,218.37,3.0]
[1734377678320,24.24815651,218.54,218.37,3.0]
[1734377679029,2.288,218.49,218.42,2.2887]
[1734377679237,2.288,218.49,218.43,2.98]
[1734377679533,24.22815651,218.58,218.43,2.98]
[1734377679833,1.5465,218.6,218.43,24.22815651]
[1734377680035,2.2874,218.54,218.46,2.2881]
[1734377680332,24.22815651,218.62,218.47,2.98]
[1734377681028,3.1294,218.52,218.47,2.98]
[1734377681330,0.8418,218.52,218.47,2.98]
[1734377681528,0.8418,218.52,218.5,2.2877]
[1734377681730,4.5265,218.67,218.51,21.24815651]
[1734377681926,1.5465,218.67,218.51,21.24815651]
[1734377682229,1.5039,218.7,218.56,2.2871]
[1734377682421,1.5039,218.7,218.46,21.24815651]
[1734377682422,1.5872,218.74,218.57,2.98]
[1734377682623,1.5872,218.74,218.59,21.24815651]
[1734377683026,21.24815651,218.75,218.63,2.2864]
[1734377683329,21.24815651,218.75,218.64,2.98]
[1734377683731,2.2858,218.69,218.64,2.98]
[1734377684933,2.2857,218.7,218.64,5.2663]
[1734377685433,5.41185637,218.75,218.64,2.98]
[1734377686238,26.66001288,218.75,218.58,1.4827]
[1734377686734,2.2864,218.63,218.58,4.4627]
[1734377687034,2.2864,218.63,218.59,5.3543006]
[1734377687535,21.24815651,218.71,218.59,5.3543006]
[1734377688034,2.2862,218.65,218.59,8.3343006]
[1734377688337,5.41185637,218.75,218.63,21.24815651]
[1734377688536,52.36,218.9,218.63,21.24815651]
[1734377688537,2.2854,218.74,218.63,21.24815651]
[1734377688732,21.24815651,218.84,218.64,2.9661]
[1734377688938,21.24815651,218.84,218.67,21.24815651]
[1734377689331,5.61717016,218.81,218.67,2.2861]
[1734377689533,2.98,218.79,218.65,2.98]
[1734377689836,2.286,218.69,218.65,2.98]
[1734377690139,2.98,218.79,218.65,2.98]
[1734377690435,2.2857,218.71,218.65,5.2663]
[1734377691834,2.98,218.79,218.65,5.2663]
[1734377692035,2.2858,218.7,218.65,5.2663]
[1734377695038,2.98,218.79,218.65,2.98]
[1734377695240,2.2854,218.74,218.69,2.2859]
[1734377695735,2.2854,218.74,218.64,1.4818]
[1734377695949,2.2854,218.74,218.59,6.8386006]
[1734377695950,21.24815651,218.75,218.62,2.98]
[1734377696132,1.6157,218.74,218.62,2.98]
[1734377696335,2.2857,218.71,218.62,5.2666]
[1734377696542,3.1132,218.74,218.62,5.2666]
[1734377696742,6.0932,218.74,218.62,2.2866]
[1734377697740,2.2861,218.68,218.62,2.2866]
[1734377698044,6.0932,218.74,218.61,2.98]
[1734377698233,2.2862,218.67,218.62,2.2866]
[1734377699440,2.2866,218.63,218.58,2.287]
[1734377699640,21.24815651,218.71,218.52,24.39125651]
[1734377699937,21.24815651,218.71,218.53,2.98]
[1734377700848,2.2869,218.6,218.53,2.98]
[1734377701143,21.24815651,218.71,218.53,2.98]
[1734377701339,7.5864,218.74,218.53,2.98]
[1734377701340,2.98,218.7,218.53,2.98]
[1734377701544,7.5864,218.74,218.56,26.60908875]
[1734377702046,4.6064,218.74,218.62,2.2866]
[1734377702246,7.5864,218.74,218.62,2.2866]
[1734377702744,7.5864,218.74,218.63,2.2865]
[1734377702945,4.6064,218.74,218.61,2.98]
[1734377703442,4.6064,218.74,218.64,2.2864]
[1734377703641,4.6064,218.74,218.61,2.98]
[1734377703845,2.2857,218.71,218.66,2.2862]
[1734377706149,2.2856,218.73,218.62,3.1024]
[1734377706348,24.37815651,218.79,218.63,4.4931]
[1734377706544,1.5887,218.79,218.64,21.24815651]
[1734377706744,80.01110984,218.8,218.64,21.24815651]
[1734377706745,2.2851,218.77,218.73,2.2854]
[1734377706945,2.2851,218.77,218.73,5.2654]
[1734377707244,2.2849,218.79,218.74,2.2853]
[1734377707549,3.1322,218.85,218.73,2.98]
[1734377707748,2.2844,218.84,218.76,2.2851]
[1734377707948,2.2844,218.84,218.73,2.98]
[1734377708146,0.34938,218.86,218.73,7.5188]
[1734377708346,21.24815651,218.87,218.73,7.5188]
[1734377708647,2.2846,218.82,218.77,2.285]
[1734377709749,1.5503,218.88,218.73,7.5188]
[1734377710548,21.24815651,218.87,218.74,2.98]
[1734377711148,21.24815651,218.87,218.73,4.5388]
[1734377711350,21.24815651,218.87,218.74,2.98]
[1734377711853,2.2849,218.79,218.74,5.2654]
[1734377712352,21.24815651,218.87,218.76,2.2851]
[1734377712653,21.24815651,218.87,218.74,2.98]
[1734377712853,1.5503,218.88,218.74,2.98]
[1734377713053,2.2845,218.83,218.78,2.2849]
[1734377713248,1.5503,218.88,218.74,2.98]
[1734377713454,21.24815651,218.91,218.74,2.98]
[1734377713655,21.24815651,218.91,218.82,2.2845]
[1734377713853,21.24815651,218.91,218.82,2.98]
[1734377714955,2.2841,218.86,218.82,2.98]
[1734377715150,21.24815651,218.91,218.82,2.98]
[1734377715350,1.5027,218.94,218.82,2.98]
[1734377715554,2.2839,218.89,218.84,2.2843]
[1734377715948,2.2837,218.91,218.82,2.98]
[1734377716158,2.2837,218.91,218.86,2.2841]
[1734377716355,1.5027,218.94,218.82,2.98]
[1734377717062,1.5027,218.94,218.73,3.0349]
[1734377717360,1.5027,218.94,218.74,24.22815651]
[1734377717858,1.5027,218.94,218.78,21.24815651]
[1734377718059,1.5027,218.94,218.79,1.5502]
[1734377718353,2.2837,218.91,218.83,2.2843]
[1734377718657,1.5027,218.94,218.82,5.47424338]
[1734377719451,21.24815651,219.02,218.82,26.72239989]
[1734377719656,10.7532049,219.01,218.86,21.24815651]
[1734377719855,10.7532049,219.01,218.87,2.98]
[1734377720049,10.7532049,219.01,218.87,4.4468]
[1734377720255,10.7532049,219.01,218.88,2.2839]
[1734377720256,2.2834,218.93,218.88,2.2839]
[1734377720451,10.7532049,219.01,218.87,4.4468]
[1734377720657,10.7532049,219.01,218.87,2.98]
[1734377720855,2.2839,218.88,218.84,2.2842]
[1734377721055,10.7532049,219.01,218.83,1.4786]
[1734377721056,2.98,218.97,218.83,1.4786]
[1734377721251,2.284,218.87,218.84,2.98]
[1734377721657,13.74585889,218.97,218.84,2.98]
[1734377721856,2.2841,218.87,218.84,2.98]
[1734377722258,13.74585889,218.97,218.84,2.98]
[1734377722455,13.74585889,218.97,218.8,1.5921]
[1734377722456,21.24815651,218.94,218.8,1.5921]
[1734377722651,21.24815651,218.94,218.79,2.98]
[1734377722652,10.76585889,218.93,218.79,2.98]
[1734377722854,10.76585889,218.93,218.74,21.24815651]
[1734377723050,3.0543,218.92,218.75,2.98]
[1734377723268,2.98,218.91,218.75,2.98]
[1734377723561,2.2846,218.82,218.76,2.2851]
[1734377723758,2.98,218.91,218.76,2.2851]
[1734377723759,13.74585889,218.91,218.76,2.2851]
[1734377723961,10.76585889,218.9,218.76,2.2851]
[1734377724259,2.2846,218.82,218.77,2.285]
[1734377724560,2.98,218.91,218.77,5.46337897]
[1734377724857,2.2849,218.79,218.76,2.2852]
[1734377725061,17.48511603,218.89,218.75,2.98]
[1734377725254,12.34200003,218.89,218.75,2.98]
[1734377725857,2.2846,218.82,218.75,2.98]
[1734377726360,2.2846,218.82,218.77,2.285]
[1734377726760,12.34200003,218.89,218.75,2.98]
[1734377726960,2.2844,218.83,218.75,2.98]
[1734377727254,10.79340003,218.89,218.75,2.98]
[1734377727454,2.284,218.87,218.78,21.24815651]
[1734377727655,6.0343,218.92,218.78,21.24815651]
[1734377728056,18.11761418,218.92,218.78,21.24815651]
[1734377728254,17.52230471,218.91,218.78,21.24815651]
[1734377728460,10.81592773,218.91,218.78,21.24815651]
[1734377729258,3.0543,218.92,218.78,21.24815651]
[1734377729456,1.487,218.92,218.78,21.24815651]
[1734377729776,22.72325651,218.98,218.82,21.24815651]
[1734377729777,17.52358373,218.95,218.82,21.24815651]
[1734377730063,5.52545589,218.97,218.83,2.98]
[1734377730259,1.5418,218.98,218.86,21.24815651]
[1734377730464,6.1949,219.05,218.86,21.24815651]
[1734377730669,25.25718535,219.05,218.86,21.24815651]
[1734377730863,2.2831,218.96,218.91,2.2835]
[1734377731166,26.80926404,219.02,218.88,2.98]
[1734377731361,2.2835,218.92,218.88,2.98]
[1734377731772,26.80926404,219.02,218.88,2.98]
[1734377731959,26.80926404,219.02,218.85,2.2841]
[1734377731960,2.2837,218.9,218.85,2.2841]
[1734377732256,2.98,218.99,218.86,2.98]
[1734377733065,2.98,218.99,218.85,5.55617115]
[1734377733360,2.98,218.99,218.84,1.61]
[1734377733361,21.24815651,218.98,218.84,1.61]
[1734377733568,10.80911837,218.97,218.83,6.0178]
[1734377733761,10.80911837,218.97,218.83,8.3022]
[1734377733762,2.284,218.88,218.83,8.3022]
[1734377733961,21.24815651,218.98,218.83,6.0178]
[1734377734466,2.2836,218.91,218.85,2.2842]
[1734377734763,2.2837,218.9,218.85,2.2842]
[1734377735466,21.24815651,218.98,218.83,6.0178]
[1734377735759,21.24815651,218.94,218.83,4.4606]
[1734377736165,2.284,218.87,218.83,4.4606]
[1734377736367,13.23488797,218.92,218.83,4.4606]
[1734377736663,13.23488797,218.95,218.83,4.4606]
[1734377736865,13.23488797,218.95,218.83,6.7449]
[1734377737262,2.2839,218.88,218.83,6.7449]
[1734377737869,2.2842,218.86,218.83,2.98]
[1734377738164,1.5512,218.94,218.83,2.98]
[1734377738564,2.2841,218.86,218.83,2.98]
[1734377738964,2.2839,218.88,218.78,13.23488797]
[1734377739170,13.23488797,218.92,218.79,2.98]
[1734377739766,13.23488797,218.92,218.76,0.76745]
[1734377739767,2.2845,218.83,218.77,2.285]
[1734377739967,2.2845,218.83,218.76,0.76745]
[1734377739968,2.2845,218.83,218.78,2.98]
[1734377740168,13.23488797,218.92,218.78,21.81023162]
[1734377740364,13.23488797,218.92,218.79,2.98]
[1734377740761,2.2851,218.77,218.76,0.76745]
[1734377741171,15.51998797,218.77,218.76,0.76745]
[1734377741370,2.2855,218.74,218.65,2.2863]
[1734377741571,16.21488797,218.77,218.64,2.9814]
[1734377741872,16.21488797,218.77,218.64,8.49664558]
[1734377742064,2.98,218.77,218.64,8.49664558]
[1734377742567,2.98,218.77,218.64,5.51524558]
[1734377742765,21.2059489,218.75,218.6,54.28658424]
[1734377743162,2.286,218.69,218.63,2.2865]
[1734377743366,2.98,218.71,218.6,54.28658424]
[1734377743669,2.2858,218.7,218.63,2.2865]
[1734377743971,2.2858,218.7,218.6,54.28658424]
[1734377743972,2.98,218.73,218.62,5.59503724]
[1734377744469,2.98,218.73,218.6,54.28658424]
[1734377744866,2.2859,218.7,218.62,2.2866]
[1734377745063,26.75432423,218.79,218.6,54.28658424]
[1734377745266,2.98,218.78,218.6,54.28658424]
[1734377745569,2.98,218.78,218.66,2.2862]
[1734377745774,2.98,218.78,218.62,2.98]
[1734377747462,2.2854,218.74,218.62,2.98]
[1734377748369,2.98,218.78,218.62,2.98]
[1734377748571,2.2856,218.73,218.62,2.98]
[1734377749567,4.5667,218.95,218.69,21.2059489]
[1734377749769,4.5667,218.95,218.7,7.5406]
[1734377749770,24.3441489,218.89,218.7,7.5406]
[1734377749968,5.6154318,218.85,218.7,7.5406]
[1734377750671,2.2847,218.81,218.7,7.5406]
[1734377750874,24.3441489,218.89,218.73,21.2059489]
[1734377751070,4.5167,218.89,218.73,21.2059489]
[1734377751270,2.2841,218.88,218.83,2.2844]
[1734377751469,4.5167,218.89,218.83,2.2844]
[1734377751669,5.264,218.89,218.83,2.2844]
[1734377751875,2.98,218.89,218.83,2.2844]
[1734377752764,2.98,218.89,218.78,2.98]
[1734377752765,2.98,218.89,218.8,2.2847]
[1734377753165,2.2844,218.84,218.8,2.2847]
[1734377753371,2.98,218.89,218.78,2.98]
[1734377754176,2.2844,218.85,218.8,2.2848]
[1734377754676,2.98,218.89,218.8,2.2848]
[1734377755881,24.1859489,218.89,218.76,2.98]
[1734377757483,2.2844,218.84,218.79,2.2849]
[1734377757677,2.98,218.89,218.76,2.98]
[1734377757881,24.1859489,218.89,218.76,2.98]
[1734377758183,2.2844,218.84,218.76,2.2852]
[1734377758381,24.1859489,218.89,218.76,2.2852]
[1734377758775,2.2849,218.79,218.72,5.46457188]
[1734377758981,2.98,218.83,218.71,2.98]
[1734377759276,2.2852,218.77,218.71,2.2857]
[1734377759474,2.98,218.83,218.7,4.5606]
[1734377760676,2.2847,218.81,218.7,4.5606]
[1734377761286,2.2847,218.81,218.76,2.2851]
[1734377762499,2.2848,218.8,218.76,2.2851]
[1734377763991,2.98,218.83,218.77,2.285]
[1734377764889,21.2059489,218.82,218.65,21.2059489]
[1734377765090,21.2059489,218.82,218.65,24.1859489]
[1734377765091,10.84297725,218.81,218.65,24.1859489]
[1734377765495,2.2856,218.73,218.68,2.286]
[1734377765697,8.21909698,218.8,218.68,2.286]
[1734377765895,8.21909698,218.8,218.65,2.98]
[1734377766693,2.2853,218.76,218.7,2.2858]
[1734377766897,10.84297725,218.79,218.65,2.98]
[1734377767097,1.4929,218.8,218.65,2.98]
[1734377767299,2.2856,218.73,218.65,2.98]
[1734377767505,2.98,218.77,218.62,4.6202]
[1734377767902,2.2858,218.71,218.66,2.2862]
[1734377768499,2.98,218.77,218.62,4.6202]
[1734377768703,2.98,218.77,218.68,2.286]
[1734377768900,2.98,218.77,218.62,4.6202]
[1734377769103,2.98,218.77,218.63,21.2059489]
[1734377769304,2.98,218.77,218.69,2.2858]
[1734377769305,2.2855,218.73,218.69,2.2858]
[1734377769800,2.98,218.77,218.63,21.2059489]
[1734377769801,2.2858,218.71,218.63,21.2059489]
[1734377770000,2.98,218.77,218.63,21.2059489]
[1734377770208,2.98,218.77,218.62,4.6202]
[1734377770501,2.98,218.77,218.62,7.6002]
[1734377771705,2.2857,218.72,218.62,7.6002]
[1734377771911,2.98,218.77,218.62,7.6002]
[1734377772307,1.4929,218.8,218.66,21.2059489]
[1734377772714,2.98,218.81,218.67,1.4946]
[1734377773207,2.98,218.81,218.69,2.2859]
[1734377773408,15.40681096,218.81,218.69,2.2859]
[1734377773607,4.5708,218.81,218.67,1.4946]
[1734377774008,1.5908,218.81,218.67,1.4946]
[1734377774215,21.2059489,218.86,218.76,2.2852]
[1734377774405,6.0981,218.84,218.71,2.98]
[1734377774610,11.65995224,218.84,218.71,2.98]
[1734377775516,21.2059489,218.82,218.67,1.4946]
[1734377775714,2.2859,218.7,218.66,2.98]
[1734377775911,2.98,218.77,218.62,6.0967]
[1734377776616,2.2859,218.7,218.65,2.2863]
[1734377776817,2.2859,218.7,218.62,6.0967]
[1734377777013,2.286,218.69,218.65,2.2863]
[1734377777315,2.286,218.69,218.62,6.0967]
[1734377777513,2.286,218.69,218.65,2.2863]
[1734377777714,2.98,218.77,218.62,6.0967]
[1734377777913,13.81820671,218.77,218.62,6.0967]
[1734377778117,2.98,218.77,218.64,2.2865]
[1734377778312,13.81992822,218.77,218.64,2.2865]
[1734377779126,21.2059489,218.74,218.61,1.5674]
[1734377779312,21.2059489,218.74,218.55,3.0067]
[1734377779524,13.80491116,218.73,218.56,2.98]
[1734377780018,1.461,218.73,218.58,21.2059489]
[1734377780517,1.461,218.73,218.64,2.2864]
[1734377780917,2.2859,218.7,218.64,2.2864]
[1734377781112,10.84587288,218.75,218.62,2.98]
[1734377781317,2.98,218.76,218.62,24.1859489]
[1734377781518,1.5042,218.78,218.62,24.1859489]
[1734377781519,2.2855,218.74,218.62,24.1859489]
[1734377781719,24.1859489,218.79,218.7,2.2858]
[1734377782119,16.22976301,218.79,218.7,2.2858]
[1734377782513,16.22976301,218.79,218.65,13.24976301]
[1734377782717,16.22976301,218.79,218.66,3.0625]
[1734377783020,16.22976301,218.79,218.7,2.2858]
[1734377783021,2.2854,218.75,218.7,2.2858]
[1734377783222,13.24976301,218.79,218.66,3.0625]
[1734377783417,13.24976301,218.79,218.66,4.5255]
[1734377783720,2.2852,218.76,218.71,2.2857]
[1734377783919,13.24976301,218.79,218.71,2.2857]
[1734377784113,13.24976301,218.79,218.68,2.98]
[1734377784313,2.2852,218.76,218.69,2.2859]
[1734377784620,13.24976301,218.79,218.68,2.98]
[1734377785421,2.2854,218.75,218.71,2.2857]
[1734377786020,13.24976301,218.79,218.68,2.98]
[1734377786318,13.24976301,218.79,218.7,2.2858]
[1734377786619,13.24976301,218.79,218.69,2.2859]
[1734377786815,13.24976301,218.76,218.66,4.5255]
[1734377787026,13.24976301,218.76,218.63,2.98]
[1734377787622,2.2852,218.76,218.65,13.24976301]
[1734377787822,2.2852,218.76,218.72,2.2856]
[1734377788218,1.5636,218.87,218.74,2.2854]
[1734377788219,2.285,218.78,218.74,2.2854]
[1734377788414,13.24976301,218.82,218.71,13.24976301]
[1734377788614,16.22976301,218.85,218.71,13.24976301]
[1734377788916,16.42311336,218.84,218.71,13.24976301]
[1734377789119,16.42311336,218.84,218.74,13.24976301]
[1734377789120,10.86126112,218.84,218.74,13.24976301]
[1734377789316,10.86126112,218.87,218.77,13.24976301]
[1734377789523,2.2841,218.88,218.83,2.2844]
[1734377789919,16.22976301,218.91,218.77,16.22976301]
[1734377790324,2.2841,218.87,218.82,2.2846]
[1734377790523,13.24976301,218.91,218.77,16.22976301]
[1734377790715,0.27916,218.87,218.77,16.22976301]
[1734377790916,0.27916,218.87,218.8,13.24976301]
[1734377791519,0.27916,218.87,218.82,2.2845]
[1734377791724,0.27916,218.87,218.83,2.98]
[1734377792325,0.27916,218.87,218.84,2.2843]
[1734377794226,0.27916,218.87,218.81,3.0084]
[1734377794521,0.27916,218.87,218.79,5.51924715]
[1734377794818,0.27916,218.87,218.78,2.285]
[1734377795037,13.24976301,218.85,218.72,13.24976301]
[1734377795219,13.24976301,218.82,218.71,2.98]
[1734377795422,13.24976301,218.82,218.71,5.2657]
[1734377795627,16.22976301,218.82,218.71,2.98]
[1734377795927,2.98,218.82,218.71,2.98]
[1734377797524,2.2852,218.77,218.72,2.2856]
[1734377797724,2.2852,218.77,218.71,2.98]
[1734377798224,2.2852,218.77,218.71,5.2656]
[1734377798729,2.2852,218.77,218.72,2.2856]
[1734377800126,2.2852,218.77,218.73,2.2855]
[1734377805025,5.55626332,218.81,218.62,21.19469236]
[1734377805226,21.19469236,218.8,218.62,21.19469236]
[1734377805422,10.85693553,218.79,218.63,2.98]
[1734377805929,1.5119,218.78,218.67,2.2861]
[1734377807234,1.5119,218.78,218.63,2.98]
[1734377807628,2.2856,218.73,218.63,2.98]
[1734377808033,1.5119,218.78,218.68,2.286]
[1734377808325,2.2857,218.72,218.68,2.286]
[1734377808927,1.5119,218.78,218.58,4.6782]
[1734377809125,1.5119,218.78,218.67,2.2862]
[1734377809324,8.24234684,218.78,218.61,21.19469236]
[1734377809544,8.24234684,218.78,218.63,5.59178071]
[1734377809836,8.24234684,218.78,218.67,2.2862]
[1734377810223,2.2857,218.72,218.67,2.2862]
[1734377810927,2.2858,218.71,218.67,2.2862]
[1734377813030,10.84830238,218.76,218.63,5.59178071]
[1734377813227,2.98,218.76,218.63,5.59178071]
[1734377814538,2.2858,218.71,218.67,2.2861]
[1734377814732,24.17469236,218.76,218.63,5.59178071]
[1734377814936,2.2864,218.65,218.61,2.2868]
[1734377815236,19.09526628,218.75,218.61,2.2868]
[1734377815537,2.2858,218.71,218.61,2.2868]
[1734377815835,10.84679735,218.73,218.61,2.2868]
[1734377816035,10.84679735,218.72,218.61,2.2868]
[1734377816234,1.5251,218.74,218.61,2.2868]
[1734377816235,10.84679735,218.71,218.61,2.2868]
[1734377816436,13.25969764,218.71,218.61,2.2868]
[1734377816637,2.2864,218.66,218.62,2.2867]
[1734377817038,14.78479764,218.74,218.6,13.25969764]
[1734377817337,2.2861,218.68,218.6,13.25969764]
[1734377817837,10.84619776,218.73,218.6,13.25969764]
[1734377818041,2.2862,218.67,218.64,2.2865]
[1734377818942,2.2861,218.68,218.64,2.2865]
[1734377820043,2.2863,218.66,218.6,13.25969764]
[1734377820243,13.25969764,218.71,218.59,8.59788448]
[1734377820445,13.25969764,218.71,218.59,5.61788448]
[1734377821242,2.98,218.76,218.63,13.25969764]
[1734377821434,13.25969764,218.77,218.64,2.98]
[1734377821635,2.2856,218.73,218.68,2.286]
[1734377821838,15.32353447,218.78,218.66,13.25969764]
[1734377822040,79.98302491,218.79,218.66,13.25969764]
[1734377822935,78.45792491,218.79,218.66,13.25969764]
[1734377823136,78.45792491,218.79,218.67,3.0401]
[1734377823338,78.45792491,218.79,218.69,13.25969764]
[1734377823543,78.45792491,218.79,218.7,2.98]
[1734377823943,78.45792491,218.79,218.68,1.4759]
[1734377824141,2.2856,218.72,218.68,3.7619]
[1734377824544,78.45792491,218.79,218.68,1.4759]
[1734377824744,13.25969764,218.77,218.68,1.4759]
[1734377824938,13.25969764,218.77,218.66,2.2862]
[1734377824939,16.23969764,218.77,218.66,2.2862]
[1734377825540,2.2858,218.71,218.67,2.2861]